Cogmind - Beta 15 @@@ ROGUE MODE // 2025.07.31 @ 14:48:07 Player: LameThyst Result: Destroyed by G-47 Trooper with Particle Gun Performance ------------- Evolutions (2) 1000 Regions Visited (3) 600 Robots Destroyed (39) 195 Value Destroyed (870) 870 Prototype IDs (5) 100 Alien Tech Used (0) 0 Bonus (0) 0 TOTAL SCORE: 2765 Bonus ------- None Cogmind --------- Core Integrity 0/550 Matter 149/300 Energy 100/100 System Corruption 0% Temperature Cool (9) Movement Treading (170) Location -8/Materials Parts ------- > --- POWER (1) -------- (None) > --- PROPULSION (5) --- Armored Treads > --- UTILITY (3) ------ (None) > --- WEAPON (2) ------- (None) > --- INVENTORY (5) ---- (None) Peak State ------------ > --- POWER ------------ Improved Ion Engine > --- PROPULSION ------- Improved Treads Improved Treads Improved Treads Improved Treads > --- UTILITY ---------- Large Storage Unit Hardened Light Armor Plating > --- WEAPON ----------- Heavy Particle Gun Improved Assault Rifle > --- INVENTORY -------- Improved Ion Engine Improved Treads Improved Treads Heat Sink Structural Scanner Sensor Array Signal Interpreter Seismic Detector Seismic Detector Light Armor Plating EM Pulse Gun Assault Rifle Heavy Assault Rifle Grenade Launcher Flail [Rating: 22] Favorites ----------- Power Ion Engine Engine Ion Engine Propulsion Improved Aluminum Leg Treads Light Treads Leg Improved Aluminum Leg Flight Unit Flight Unit Utility Seismic Detector Device Seismic Detector Storage Small Storage Unit Protection Hardened Light Armor Plating Weapon Heavy Assault Rifle Energy Gun Improved Medium Laser Ballistic Gun Heavy Assault Rifle Launcher Grenade Launcher Special Weapon Mining Laser Impact Weapon Flail Slashing Weapon Mining Claw Build | -11 -10 -9 -8 ------- Run | Yrd Mat Mat Mat Slots Evolved 4 | . . 2 2 Power . | . . . . Propulsion 3 | . . 2 1 Utility 1 | . . . 1 Weapon . | . . . . Parts Attached 45 | 7 12 21 5 Power 4 | 1 2 1 . Engine 4 | 1 2 1 . Core . | . . . . Reactor . | . . . . Propulsion 19 | 2 2 12 3 Treads 9 | 2 . 6 1 Leg 4 | . 2 2 . Wheel . | . . . . Hover . | . . . . Flight 6 | . . 4 2 Utility 8 | 2 2 3 1 Device 4 | 1 . 2 1 Storage 3 | 1 2 . . Processor . | . . . . Hackware . | . . . . Protection 1 | . . 1 . Artifact . | . . . . Weapon 14 | 2 6 5 1 Energy Gun 3 | . 1 2 . Energy Cannon . | . . . . Ballistic Gun 6 | 2 3 1 . Ballistic Cannon . | . . . . Launcher 2 | . . 1 1 Special Weapon 1 | . 1 . . Impact Weapon 1 | . . 1 . Slashing Weapon 1 | . 1 . . Piercing Weapon . | . . . . Special Melee Weapon . | . . . . Unidentified Prototypes 3 | . 1 2 . Parts Lost 2 | . . 1 1 Power . | . . . . Propulsion . | . . . . Utility . | . . . . Weapon 2 | . . 1 1 Highest Loss Streak 1 | . . 1 1 To Critical Strikes . | . . . . Average Backups 8 | 3 8 11 3 Power . | . . . . Propulsion 1 | 1 2 . . Utility 3 | . 2 5 1 Weapon 3 | 1 3 4 . Tool/Special . | . . . . Unused Backups 13 | . 3 7 3 Power 3 | . 1 2 . Propulsion 2 | . 2 . . Utility 6 | . . 3 3 Weapon 2 | . . 2 . Tool/Special . | . . . . Average Slot Usage (%) 97 | . 99 99 70 Engine 12 | . 14 11 6 Treads 9 | . 9 10 . Leg 19 | . 18 25 . Flight 4 | . . 7 33 Device 12 | . 14 8 15 Storage 11 | . 14 9 . Protection 1 | . . 3 . Energy Gun 6 | . 7 6 . Ballistic Gun 13 | . 16 10 . Impact Weapon 1 | . . 3 6 Slashing Weapon 2 | . 2 1 . Peak Build Rating 22 | 7 13 22 16 Average Rating 12 | 5 10 17 9 On Entrance 7 | . 7 13 11 Naked Turns 28 | . . . 28 Heaviest Build 38 | 11 32 38 18 Greatest Support 92 | 40 40 92 20 Greatest Overweight (x) 4 | . 1 4 . Average Overweight (x) . | . . . . Largest Inventory Capacity 15 | 8 15 15 5 Average Capacity 10 | 7 9 13 5 Most Carried 15 | 6 12 15 5 Average Carried 8 | 3 8 11 2 Final Capacity 15 | 8 15 5 5 Final Carried 12 | 6 12 5 . Class Distribution -------------------- 91% | Mutant 8% | Sprinter Dominant Class ---------------- Mutant | -10/Materials Mutant | -9/Materials Sprinter | -8/Materials Resources | -11 -10 -9 -8 ----------- Run | Yrd Mat Mat Mat Matter Collected 1016 | 282 261 319 154 Remotely . | . . . . Salvage Created 1379 | 125 554 546 154 Parts 90 | 12 36 38 4 Haulers Intercepted 3 | . 1 2 . Recyclers Shooed 2 | . 2 . . Parts Field Recycled . | . . . . Retrieved Matter . | . . . . Parts Self-Destructed . | . . . . Prevented . | . . . . Kills | -11 -10 -9 -8 ------- Run | Yrd Mat Mat Mat Combat Hostiles Destroyed 26 | . 9 14 3 Melee 2 | . . . 2 Guns 19 | . 9 10 . AOE 4 | . . 4 . Classes Destroyed 9 | 2 6 1 . Builder 3 | . 2 1 . Tunneler 3 | 2 1 . . Hauler 3 | . 1 2 . Recycler 2 | 1 1 . . Operator 1 | . 1 . . Watcher 1 | . 1 . . Swarmer 11 | . 3 8 . Grunt 12 | . 6 3 3 Sentry 3 | . . 3 . Best Kill Streak 6 | 1 6 6 3 Combat Bots Only 4 | . 3 4 3 Max Kills in Single Turn 3 | 1 2 3 1 Gunslinging 1 | . 1 . . Exploded 3 | . . 3 . Melee 1 | . . . 1 Uniques/NPCs Destroyed . | . . . . Combat | -11 -10 -9 -8 -------- Run | Yrd Mat Mat Mat Hostile Shots Fired 187 | . 35 60 92 Missed 45 | . 7 18 20 Hits 142 | . 28 42 72 Projectile 142 | . 28 42 72 Critical Strikes 4 | . 2 1 1 Damage Taken 1733 | . 337 511 885 Core 686 | . 94 42 550 Absorbed by Shields . | . . . . Regen/Repaired (Parts) 17 | . . . 17 Core Remaining (%) 83 | 100 62 89 . Volleys Fired 82 | 6 44 30 2 Largest 2 | 2 2 2 1 Hottest 100 | 40 100 79 36 Shots Fired 153 | 12 80 59 2 Gun 142 | 12 73 57 . Cannon . | . . . . Launcher 4 | . . 2 2 Special 7 | . 7 . . Kinetic 79 | 12 37 30 . Thermal 63 | . 43 20 . Explosive 4 | . . 2 2 Electromagnetic 7 | . . 7 . Robot Hit Streak 14 | 7 10 14 . Robot Miss Streak 6 | 1 6 4 . Penetration Max . | . . . . Secondary Targets 5 | . 2 3 . Max Gunslinging Chain 1 | . 1 1 . Shots Hit Robots 90 | 8 40 36 6 Core Hits 55 | 6 22 23 4 Critical Kills . | . . . . Critical Parts Destroyed 2 | 1 . . 1 Critical Strikes 3 | 1 1 . 1 Burn 1 | . 1 . . Destroy 1 | 1 . . . Smash 1 | . . . 1 Melee Attacks 28 | . 10 7 11 Impact 14 | . . 3 11 Slashing 14 | . 10 4 . Piercing . | . . . . Sneak Attacks . | . . . . Combat Hostiles . | . . . . Follow-up Attacks . | . . . . Damage Inflicted 1728 | 65 653 741 269 Guns 1308 | 65 653 590 . Cannons . | . . . . Explosions 151 | . . 151 . Melee 224 | . . . 224 Ramming 45 | . . . 45 Kinetic 589 | 65 260 264 . Thermal 668 | . 393 275 . Explosive 151 | . . 151 . Electromagnetic 51 | . . 51 . Impact 224 | . . . 224 Slashing . | . . . . Piercing . | . . . . Highest Corruption 4 | . . 4 . Average Corruption 3 | . . 3 . Corruption Purged . | . . . . Corruption Blocked . | . . . . Effects 10 | . . 10 . Message Errors 2 | . . 2 . Matter Fused 2 | . . 2 . Energy Discharges 1 | . . 1 . Data Loss (minor) 2 | . . 2 . Data Loss (major) 1 | . . 1 . Alerts 2 | . . 2 . Overload Shots . | . . . . Overflow Damage 36 | . . . 36 Projectiles . | . . . . Explosions 3 | . . . 3 Melee 33 | . . . 33 Knockbacks . | . . . . Impact . | . . . . Kinetic . | . . . . Secondary . | . . . . Self-Inflicted Damage 120 | . . . 120 Shots 2 | . . . 2 Rammed 13 | . . . 13 Targets Rammed 13 | . . . 13 Kicked . | . . . . Crushed . | . . . . Highest Temperature 165 | . 165 123 6 Average Temperature 44 | . 46 41 5 Received Heat Transfer 582 | . 189 150 243 Siege Activations . | . . . . Martial Activations . | . . . . Shielding Activations . | . . . . Robots Disrupted . | . . . . Combat Hostiles . | . . . . Robots Corrupted 1 | . . . 1 Combat Hostiles 1 | . . . 1 Parts Fried 2 | . . . 2 Impact Corruptions 2 | . . . 2 Robots Melted . | . . . . Combat Hostiles . | . . . . Parts Melted 1 | . 1 . . Heat Transferred 1517 | . 925 592 . Parts Sabotaged . | . . . . Parts Stolen . | . . . . Parts Stripped . | . . . . Power Chain Reactions . | . . . . Alert | -11 -10 -9 -8 ------- Run | Yrd Mat Mat Mat Maximum Alert Level 1 | . . 1 . Low Security (%) 94 | 100 100 80 100 Level 1 5 | . . 19 . Level 2 . | . . . . Level 3 . | . . . . Level 4 . | . . . . Level 5 . | . . . . High Security . | . . . . Max Security . | . . . . Peak Influence 232 | 5 148 232 152 Initial 66 | . . 25 66 Average 70 | . 50 120 83 Influence Increases 968 | 15 357 456 140 Destroy 0b10 Robot/C 520 | . 180 280 60 Destroy 0b10 Robot/NC 70 | 15 35 20 . Destroy Leader 108 | . 44 64 . Successful Hack 79 | . 40 15 24 Disable Machine 60 | . 15 . 45 Destroy Structure 41 | . 13 17 11 Lose Combat Pursuer 90 | . 30 60 . Influence Decreases 842 | 15 296 358 173 Entered New Map 129 | . . 36 93 Time Decay 682 | 15 296 301 70 Lost Part 10 | . . . 10 Purge Threat 21 | . . 21 . Squads Dispatched 3 | . . 1 2 Investigation 2 | . . . 2 Extermination . | . . . . Reinforcement 1 | . . 1 . Assault . | . . . . Garrison . | . . . . Intercept . | . . . . Searches Triggered . | . . . . Construction Impeded . | . . . . Haulers Reinforced . | . . . . Active Scanning Responses . | . . . . Cargo Convoy Interrupts . | . . . . Stealth | -11 -10 -9 -8 --------- Run | Yrd Mat Mat Mat Distress Signals 4 | . . 2 2 Communications Jammed . | . . . . Distress Signals . | . . . . Times Spotted 58 | . 18 23 17 Peak Tracking Total 15 | . 4 5 15 Tactical Retreats 5 | . 2 3 . Traps | -11 -10 -9 -8 ------- Run | Yrd Mat Mat Mat Traps Triggered 6 | . . 5 1 Indirectly . | . . . . Trap Hack Attempts . | . . . . Triggered . | . . . . Disarmed . | . . . . Reprogrammed . | . . . . Reused . | . . . . Traps Extracted . | . . . . Installed . | . . . . Triggered . | . . . . Machines | -11 -10 -9 -8 ---------- Run | Yrd Mat Mat Mat Machines Disabled 4 | . 1 . 3 Max in Single Turn 2 | . 1 . 2 Machines Repaired . | . . . . Machines Dismantled . | . . . . Machines Sabotaged . | . . . . Overloaded Fab Kills . | . . . . Hacking | -11 -10 -9 -8 --------- Run | Yrd Mat Mat Mat Machines Accessed 16 | . 8 6 2 Terminals 12 | . 7 5 . Fabricators . | . . . . Repair Stations 2 | . . . 2 Recycling Units 2 | . 1 1 . Scanalyzers . | . . . . Garrison Access . | . . . . Total Hacks 59 | . 32 16 11 Successful 32 | . 18 9 5 Failed 27 | . 14 7 6 Catastrophic 4 | . 2 1 1 Database Lockouts . | . . . . Manual 40 | . 24 16 . Terminals 45 | . 30 15 . Fabricators . | . . . . Repair Stations 11 | . . . 11 Recycling Units 3 | . 2 1 . Scanalyzers . | . . . . Garrison Access . | . . . . Terminal Hacks 6 | . 5 1 . Robot Analysis 2 | . 2 . . Prototype ID Bank 1 | . 1 . . Unreport Threat 1 | . . 1 . Zone Layout 2 | . 2 . . Fabricator Hacks . | . . . . Repair Station Hacks 5 | . . . 5 Scan Component 4 | . . . 4 Repair 1 | . . . 1 Recycling Unit Hacks . | . . . . Scanalyzer . | . . . . Garrison Access Hacks . | . . . . Unauthorized Hacks 21 | . 13 8 . Terminals 18 | . 11 7 . Assimilate 2 | . 2 . . Botnet 3 | . 2 1 . Operators 2 | . 1 1 . Skim 11 | . 6 5 . Fabricators . | . . . . Repair Stations . | . . . . Recycling Units 3 | . 2 1 . Reject 2 | . 1 1 . Recyclers 1 | . 1 . . Scanalyzers . | . . . . Garrison Access . | . . . . Data Cores Recovered 1 | . 1 . . Used . | . . . . Hacking Detections 14 | . 7 5 2 Full Trace Events 2 | . 1 . 1 Feedback Events . | . . . . Feedback Blocked . | . . . . Robot Schematics Acquired . | . . . . Robots Built . | . . . . Authchips . | . . . . Time . | . . . . Total Robot Build Rating . | . . . . Part Schematics Acquired . | . . . . Parts Built . | . . . . Authchips . | . . . . Time . | . . . . Total Part Build Rating . | . . . . Parts Repaired 1 | . . . 1 Time 36 | . . . 36 Parts Recycled . | . . . . Recycled Matter . | . . . . Retrieved Matter . | . . . . Retrieved Components . | . . . . Parts Scanalyzed . | . . . . Part Schematics Acquired . | . . . . Parts Damaged . | . . . . Bothacking | -11 -10 -9 -8 ------------ Run | Yrd Mat Mat Mat Used RIF Installer . | . . . . Robots Hacked . | . . . . Non-combat . | . . . . Combat . | . . . . Robot Hacks Applied . | . . . . Relay Couplers Released . | . . . . Fabnet Peak Effective % . | . . . . Robots Rewired . | . . . . Allies Hacked . | . . . . Hacks Repelled . | . . . . Allies | -11 -10 -9 -8 -------- Run | Yrd Mat Mat Mat Total Allies . | . . . . Largest Group . | . . . . Highest-Rated Group . | . . . . Highest-Rated Ally . | . . . . Total Orders . | . . . . Ally Attacks . | . . . . Total Damage . | . . . . Kills . | . . . . Allies Corrupted . | . . . . Allies Melted . | . . . . Intel | -11 -10 -9 -8 ------- Run | Yrd Mat Mat Mat Active Infowar (turns) 2104 | 68 1452 473 111 Sensors 108 | . . . 108 Structural 258 | . . 225 33 Seismic 1990 | 68 1452 360 110 Robot Analysis Total 2 | . 2 . . Derelict Logs Recovered . | . . . . Drone Launches . | . . . . Drone Recoveries . | . . . . Exploration | -11 -10 -9 -8 ------------- Run | Yrd Mat Mat Mat Turns Passed 2526 | 172 1452 746 156 Spaces Moved 1349 | 91 728 398 132 Core 29 | 4 . . 25 Treads 391 | 87 224 75 5 Legs 711 | . 504 207 . Wheels . | . . . . Hover . | . . . . Flight 218 | . . 116 102 Fastest Speed 28 | 50 120 31 28 Average Speed 118 | 155 137 103 37 Slowest Speed 397 | 160 190 397 170 Overloaded Moves . | . . . . Propulsion Burnouts . | . . . . Robots Hopped . | . . . . Potential Cave-ins . | . . . . Cave-ins Triggered . | . . . . Exploration Rate (%) 39 | 5 90 37 24 Regions Visited 3 Branch Regions . Pre-discovered Areas . | . . . . Known Exits Taken 1 | . . 1 . Unknown Exits Taken 2 | 1 1 . . Scrap Searched . | . . . . Spaces Dug 17 | . 10 5 2 Terrain Destroyed 37 | . 10 16 11 Melee 10 | . 3 5 2 Projectile 7 | . 7 . . AOE 20 | . . 11 9 Terrain Rammed . | . . . . Walls Destroyed . | . . . . Machines Disabled . | . . . . Actions | -11 -10 -9 -8 --------- Run | Yrd Mat Mat Mat Total 2060 | 109 1068 656 227 Wait 419 | . 248 128 43 Move 1346 | 90 727 397 132 Hop . | . . . . Pick Up 33 | 6 10 14 3 Fast Attach 21 | 7 3 10 1 Attach 8 | . . 5 3 Detach 6 | . . 5 1 Swap 45 | . 12 31 2 Drop 59 | . 14 29 16 Fire 82 | 6 44 30 2 Melee 28 | . 10 7 11 Ram 13 | . . . 13 Kick . | . . . . Crush . | . . . . Escape Stasis . | . . . . Rewire . | . . . . Trap . | . . . . Miscellaneous . | . . . . Route ------- -11/Scrapyard -10/Materials (discovered 5 exits: *Mat x3 / [*Min] / [*Sub]) -9/Materials (discovered 3 exits: *Mat x3) -8/Materials History --------- Turn | Location | Event 8 | -11/Scrapyard | Discovered new exit (range 14) 173 | -11/Scrapyard | Entered Materials 189 | -10/Materials | Discovered new exit (range 14) 317 | -10/Materials | Build established: Mutant 628 | -10/Materials | Discovered new exit (range 15) 694 | -10/Materials | Discovered new exit (range 7) 789 | -10/Materials | Discovered new exit (range 10) 1064 | -10/Materials | Discovered new exit (range 15) 1382 | -10/Materials | Learned location of 1 exit from Recycling 1416 | -10/Materials | Loaded intel: 21 trap records 1440 | -10/Materials | Learned location of 2 exits from Subcaves 1453 | -10/Materials | Learned location of 2 exits from Subcaves 1454 | -10/Materials | Learned Storage emergency access door positions 1625 | -10/Materials | Entered another Materials area 1625 | -9/Materials | Evolved 2 slots: Propulsion x2 1626 | -9/Materials | Identified exit to Materials 2371 | -9/Materials | Entered another Materials area 2371 | -8/Materials | Evolved 2 slots: Propulsion x1, Utility x1 2413 | -8/Materials | Repaired Broken Structural Scanner 2511 | -8/Materials | Core integrity fell below 50% 2520 | -8/Materials | Core integrity fell below 20% 2527 | -8/Materials | Destroyed by G-47 Trooper with Particle Gun Last Messages --------------- into recycling unit. 02504_ Slammed into S-10 Pest. 02506_ R-06 Scavenger inserts Imp. Heat Sink into recycling unit. 02507_ Slammed into S-10 Pest. 02509_ R-06 Scavenger inserts Particle Gun into recycling unit. 02510_ Slammed into G-47 Trooper. 02511_ K-01 Serf cleans the Nuclear Reactor. 02511_ Critical hit (Burn: +37). 02512_ Slammed into G-47 Trooper. 02512_ K-01 Serf cleans the Terminal. 02514_ W-25 Informer sends out distress signal. 02514_ Electrolysis Chamber disabled. 02515_ K-01 Serf cleans the Terminal. 02515_ K-01 Serf cleans the Nuclear Reactor. 02518_ Acquired Arm. Treads. 02518_ K-01 Serf cleans the Terminal. 02525_ S-10 Pest destroyed. 02527_ K-01 Serf collects debris. Map ----- +----------------------------------------------------+ | ""? ##???????????????????????????????????????? | | """ ##???????????????????????????????????????? | | """ ##???????????????????????????????????????? | | ##???????????????????????????????????????? | | ##???????????????????????????????????????? | | ##???????????????????????????????????????? | | ##???????????????????????????????????????? | | ####?????????????????????????????????????? | | ####?????????????????????????????????????? | | ]]! # ##?????? ????????????????????????????? | | ]! ##?????# ????????????????????????????? | | ! # ##?????# ????????????????????????????? | | ##???????# ????????????????????????????? | | ##???????# ????????????????????????????? | | ##???????# ????????????????????????????? | | """ ##???????# #???????????????????????????? | | """ ##???????# #???????????????????????????? | | """ ####?????# #???????????????????????????? | | ########## #???????????????????????????? | | """ #???????????????????????????? | | """ "T" #???????????????????????????? | | """ ##??????????????????????????? | | """ T#??????????????????????????? | | """ """ ##???????? #??????????????? | | """ """ k####### #??????????????? | | """ """ @ g #?????????????? | | m g +?????????????? | | g%* sss g #?????????????? | | " " """ """ g##########+#+##?????????????? | | "Y" """ """ #???????????????????????????? | | """ """ "" #???????????????????????????? | | #???????????????????????????? | | #???????????????????????????? | | ################## #???????????????????????????? | | ##???######??????# #???????????????????????????? | | ##???????????????# #???????????????????????????? | | ?????????????????# #???????????????????????????? | | ?????????????????# #???????????????????????????? | | ?????????????????# #???????????????????????????? | | ?????????????????# #???????????????????????????? | | ?????????????????# #???????????????????????????? | | ?????????????????# #???????????????????????????? | | ?????????????????+ #???????????????????????????? | | ?????????????????# #???????????????????????????? | | ?????????????????? #???????????????????????????? | | ?????????????????? #???????????????????????????? | | ?????????????????? ????????????????????????????? | | ?????????????????????????????????????????????????? | | ?????????????????????????????????????????????????? | | ?????????????????????????????????????????????????? | +----------------------------------------------------+ Best States ------------- Heat Dissipation 31 Energy Generation 12 Energy Capacity 265 Matter Stores 300 Matter Capacity 300 Sight Range 16 Robot Scan Range 14 Terrain Scan Density 10 Armor Coverage 150 Evasion (%) 64 Recoil Reduction 4 Item Schematics ----------------- None Robot Schematics ------------------ None Fabricated ------------ Nothing Repaired ---------- Structural Scanner | 15% | -8/Materials | Broken Alien Tech Used ----------------- None Achievements -------------- None Challenges ------------ None Game ------ Seed MetafiberFortressDeflector Manual? 0 Play Time 00:36:47 Cumulative 107.4 hours Start 2025.07.31 @ 14:14:44 End 2025.07.31 @ 14:48:07 Sessions 1 Manual Loads 0 Difficulty Rogue Special Mode None Game No. 122 Rogue 122 Adventurer 0 Explorer 0 Win Type - Total 0 Types 0/0/0/0/0/0/0/0/0/0 Lore% 59 Gallery% 43 Achievement% 34 Wizard Run 0 Options --------- Layout 1 ASCII 0 Keyboard 0 Movement Numpad Keybinds 0 Fullscreen 2 Font 48/Smallcaps Map View 50x35 Zoom Use 0% Tactical HUD 1 Map Filters NONE Filters NONE Steam 0 RUN: 5afe0fb4-3d22-47db-97ee-0c71d62c64a2